[Event "Titled Tuesday Blitz November 01 Late 2022"]
[White "Harvey, Marcus R"]
[Black "Kodinets, Konstantin L."]
[WhiteFideId "400092"]
[BlackFideId "4122011"]
[WhiteElo "2457"]
[BlackElo "2447"]
[Result "1-0"]
[Round "08"]
[TimeControl "180+1"]
[Date "2022.11.02"]
[WhiteClock "0:00:13"]
[BlackClock "0:00:04"]

1. Nf3 {[%clk 0:03:00]}  d6 {[%clk 0:02:59]} 2. g3 {[%clk 0:03:00]}  e5 {[%clk 0:02:59]} 3. Bg2 {[%clk 0:03:01]}  Be7 {[%clk 0:02:59]} 4. O-O {[%clk 0:03:01]}  c6 {[%clk 0:02:59]} 5. d4 {[%clk 0:03:01]}  Nd7 {[%clk 0:02:59]} 6. dxe5 {[%clk 0:03:02]}  dxe5 {[%clk 0:02:58]} 7. b3 {[%clk 0:03:02]}  Qc7 {[%clk 0:02:52]} 8. Bb2 {[%clk 0:03:02]}  Nh6 {[%clk 0:02:51]} 9. Nbd2 {[%clk 0:03:01]}  O-O {[%clk 0:02:50]} 10. Nc4 {[%clk 0:03:01]}  f6 {[%clk 0:02:51]} 11. a4 {[%clk 0:02:59]}  a5 {[%clk 0:02:50]} 12. Qc1 {[%clk 0:02:49]}  Nb6 {[%clk 0:02:46]} 13. Ne3 {[%clk 0:02:44]}  Ng4 {[%clk 0:02:44]} 14. Nxg4 {[%clk 0:02:38]}  Bxg4 {[%clk 0:02:44]} 15. h3 {[%clk 0:02:39]}  Be6 {[%clk 0:02:42]} 16. e4 {[%clk 0:02:26]}  Rfd8 {[%clk 0:02:34]} 17. Bc3 {[%clk 0:02:25]}  Nd7 {[%clk 0:02:33]} 18. Nh4 {[%clk 0:02:23]}  Qb6 {[%clk 0:02:32]} 19. Nf5 {[%clk 0:02:21]}  Bxf5 {[%clk 0:02:32]} 20. exf5 {[%clk 0:02:21]}  Bc5 {[%clk 0:02:29]} 21. Rb1 {[%clk 0:02:16]}  Nf8 {[%clk 0:02:29]} 22. g4 {[%clk 0:02:13]}  h6 {[%clk 0:02:27]} 23. h4 {[%clk 0:02:09]}  Bd4 {[%clk 0:02:18]} 24. Bd2 {[%clk 0:02:06]}  Rd7 {[%clk 0:02:09]} 25. c3 {[%clk 0:01:58]}  Bc5 {[%clk 0:02:08]} 26. b4 {[%clk 0:01:54]}  axb4 {[%clk 0:02:03]} 27. cxb4 {[%clk 0:01:52]}  Bd4 {[%clk 0:02:03]} 28. Qc4+ {[%clk 0:01:44]}  Kh8 {[%clk 0:02:01]} 29. a5 {[%clk 0:01:44]}  Qa7 {[%clk 0:01:59]} 30. Be1 {[%clk 0:01:26]}  e4 {[%clk 0:01:00]} 31. Bxe4 {[%clk 0:01:24]}  Qb8 {[%clk 0:01:00]} 32. Kg2 {[%clk 0:01:21]}  Qf4 {[%clk 0:00:55]} 33. Bf3 {[%clk 0:01:19]}  h5 {[%clk 0:00:48]} 34. Qc1 {[%clk 0:01:18]}  Qe5 {[%clk 0:00:36]} 35. Qc2 {[%clk 0:00:56]}  hxg4 {[%clk 0:00:33]} 36. Bxg4 {[%clk 0:00:57]}  Qf4 {[%clk 0:00:30]} 37. Bf3 {[%clk 0:00:54]}  Be5 {[%clk 0:00:30]} 38. Rh1 {[%clk 0:00:54]}  Rd4 {[%clk 0:00:25]} 39. b5 {[%clk 0:00:51]}  Rad8 {[%clk 0:00:23]} 40. bxc6 {[%clk 0:00:49]}  bxc6 {[%clk 0:00:22]} 41. a6 {[%clk 0:00:44]}  Rd2 {[%clk 0:00:21]} 42. Bxd2 {[%clk 0:00:42]}  Rxd2 {[%clk 0:00:21]} 43. Qxd2 {[%clk 0:00:31]}  Qxd2 {[%clk 0:00:22]} 44. Rhd1 {[%clk 0:00:27]}  Qf4 {[%clk 0:00:20]} 45. a7 {[%clk 0:00:27]}  Qh2+ {[%clk 0:00:18]} 46. Kf1 {[%clk 0:00:27]}  Qh3+ {[%clk 0:00:16]} 47. Bg2 {[%clk 0:00:28]}  Qxf5 {[%clk 0:00:14]} 48. a8=Q {[%clk 0:00:25]}  Bg3 {[%clk 0:00:12]} 49. Qxf8+ {[%clk 0:00:22]}  Kh7 {[%clk 0:00:12]} 50. Rb2 {[%clk 0:00:20]}  Bxh4 {[%clk 0:00:11]} 51. Qe8 {[%clk 0:00:18]}  Qg5 {[%clk 0:00:10]} 52. Qe4+ {[%clk 0:00:16]}  f5 {[%clk 0:00:10]} 53. Qe3 {[%clk 0:00:15]}  Qf6 {[%clk 0:00:08]} 54. Rc2 {[%clk 0:00:14]}  Bg5 {[%clk 0:00:06]} 55. Qh3+ {[%clk 0:00:14]}  Bh6 {[%clk 0:00:07]} 56. Rxc6 {[%clk 0:00:13]}  Qb2 {[%clk 0:00:04]} 57. Qxf5+ {[%clk 0:00:13]} 1-0


[Site "https://www.chess.com"]

[Event "Titled Tuesday Blitz November 01 Late 2022"]
[White "Ibarra Jerez, Jose Carlos"]
[Black "Seo, Jung Min"]
[WhiteFideId "2226332"]
[BlackFideId "1734687"]
[WhiteElo "2627"]
[BlackElo "2455"]
[Result "1-0"]
[Round "08"]
[TimeControl "180+1"]
[Date "2022.11.01"]
[WhiteClock "0:01:57"]
[BlackClock "0:01:47"]

1. e4 {[%clk 0:03:00]}  c5 {[%clk 0:03:00]} 2. Nc3 {[%clk 0:03:00]}  a6 {[%clk 0:02:58]} 3. g4 {[%clk 0:03:00]}  b5 {[%clk 0:02:57]} 4. Bg2 {[%clk 0:03:00]}  Bb7 {[%clk 0:02:57]} 5. d3 {[%clk 0:03:01]}  g6 {[%clk 0:02:55]} 6. Be3 {[%clk 0:02:57]}  d6 {[%clk 0:02:54]} 7. Qd2 {[%clk 0:02:54]}  Bg7 {[%clk 0:02:54]} 8. h4 {[%clk 0:02:50]}  h5 {[%clk 0:02:52]} 9. gxh5 {[%clk 0:02:45]}  Rxh5 {[%clk 0:02:52]} 10. Nge2 {[%clk 0:02:45]}  Nf6 {[%clk 0:02:50]} 11. Ng3 {[%clk 0:02:45]}  Rh8 {[%clk 0:02:50]} 12. f4 {[%clk 0:02:39]}  Ng4 {[%clk 0:02:43]} 13. Bg1 {[%clk 0:02:38]}  b4 {[%clk 0:02:43]} 14. Nd1 {[%clk 0:02:38]}  Nd7 {[%clk 0:02:37]} 15. h5 {[%clk 0:02:38]}  Ngf6 {[%clk 0:02:21]} 16. e5 {[%clk 0:02:35]}  Bxg2 {[%clk 0:02:14]} 17. exf6 {[%clk 0:02:33]}  Bxh1 {[%clk 0:02:07]} 18. fxg7 {[%clk 0:02:33]}  Rg8 {[%clk 0:02:07]} 19. h6 {[%clk 0:02:32]}  Nf6 {[%clk 0:02:00]} 20. Nxh1 {[%clk 0:02:30]}  Qd7 {[%clk 0:01:59]} 21. Qg2 {[%clk 0:02:25]}  Rc8 {[%clk 0:01:57]} 22. Ne3 {[%clk 0:02:19]}  d5 {[%clk 0:01:56]} 23. Nf2 {[%clk 0:02:14]}  d4 {[%clk 0:01:54]} 24. Neg4 {[%clk 0:02:14]}  Nxg4 {[%clk 0:01:53]} 25. Nxg4 {[%clk 0:02:01]}  Qe6+ {[%clk 0:01:50]} 26. Ne5 {[%clk 0:01:58]}  f6 {[%clk 0:01:47]} 27. Qxg6+ {[%clk 0:01:57]} 1-0


[Site "https://www.chess.com"]

[Event "Titled Tuesday Blitz November 01 Late 2022"]
[White "Indjic, Aleksandar"]
[Black "Yanchenko, Roman"]
[WhiteFideId "911925"]
[BlackFideId "4137329"]
[WhiteElo "2592"]
[BlackElo "2514"]
[Result "0-1"]
[Round "08"]
[TimeControl "180+1"]
[Date "2022.11.01"]
[WhiteClock "0:01:36"]
[BlackClock "0:01:53"]

1. d4 {[%clk 0:03:00]}  d5 {[%clk 0:02:59]} 2. Nf3 {[%clk 0:03:01]}  Bf5 {[%clk 0:02:59]} 3. Bf4 {[%clk 0:03:01]}  e6 {[%clk 0:02:59]} 4. e3 {[%clk 0:02:59]}  Nf6 {[%clk 0:02:59]} 5. c4 {[%clk 0:03:00]}  Bxb1 {[%clk 0:02:59]} 6. Qxb1 {[%clk 0:03:01]}  Bb4+ {[%clk 0:03:00]} 7. Kd1 {[%clk 0:03:01]}  Bd6 {[%clk 0:03:00]} 8. Bg5 {[%clk 0:03:00]}  c6 {[%clk 0:02:58]} 9. cxd5 {[%clk 0:02:53]}  cxd5 {[%clk 0:02:58]} 10. Bd3 {[%clk 0:02:53]}  Nc6 {[%clk 0:02:57]} 11. Ke2 {[%clk 0:02:53]}  a6 {[%clk 0:02:56]} 12. Rc1 {[%clk 0:02:53]}  Rc8 {[%clk 0:02:56]} 13. a3 {[%clk 0:02:53]}  h6 {[%clk 0:02:56]} 14. Bh4 {[%clk 0:02:52]}  g5 {[%clk 0:02:56]} 15. Bg3 {[%clk 0:02:52]}  g4 {[%clk 0:02:57]} 16. Nd2 {[%clk 0:02:48]}  h5 {[%clk 0:02:53]} 17. Bh4 {[%clk 0:02:46]}  Be7 {[%clk 0:02:49]} 18. Bxf6 {[%clk 0:02:42]}  Bxf6 {[%clk 0:02:49]} 19. g3 {[%clk 0:02:43]}  h4 {[%clk 0:02:43]} 20. Nb3 {[%clk 0:02:36]}  Qb6 {[%clk 0:02:39]} 21. Rc3 {[%clk 0:02:28]}  Ke7 {[%clk 0:02:27]} 22. Qa2 {[%clk 0:02:02]}  hxg3 {[%clk 0:02:17]} 23. hxg3 {[%clk 0:02:02]}  Rh2 {[%clk 0:02:16]} 24. Rf1 {[%clk 0:01:54]}  Rch8 {[%clk 0:02:15]} 25. Ke1 {[%clk 0:01:41]}  Rh1 {[%clk 0:02:11]} 26. Rc2 {[%clk 0:01:37]}  Rxf1+ {[%clk 0:02:02]} 27. Bxf1 {[%clk 0:01:38]}  Rh1 {[%clk 0:02:02]} 28. Nd2 {[%clk 0:01:38]}  Bxd4 {[%clk 0:02:00]} 29. exd4 {[%clk 0:01:36]}  Nxd4 {[%clk 0:02:01]} 30. Rc3 {[%clk 0:01:36]}  Qb5 {[%clk 0:01:53]} 0-1


[Site "https://www.chess.com"]

[Event "Titled Tuesday Blitz November 01 Late 2022"]
[White "Ismayil, Malak"]
[Black "Estrada Nieto, Julian"]
[WhiteFideId "13412604"]
[BlackFideId "5101018"]
[WhiteElo "1879"]
[BlackElo "2252"]
[Result "0-1"]
[Round "08"]
[TimeControl "180+1"]
[Date "2022.11.02"]
[WhiteClock "0:00:03"]
[BlackClock "0:00:10"]

1. e4 {[%clk 0:03:00]}  e5 {[%clk 0:02:59]} 2. Nf3 {[%clk 0:03:00]}  Nc6 {[%clk 0:02:59]} 3. Bc4 {[%clk 0:03:01]}  Bc5 {[%clk 0:02:59]} 4. d3 {[%clk 0:03:01]}  Nf6 {[%clk 0:02:58]} 5. O-O {[%clk 0:03:00]}  d6 {[%clk 0:02:58]} 6. h3 {[%clk 0:03:00]}  h6 {[%clk 0:02:57]} 7. Nc3 {[%clk 0:03:01]}  a6 {[%clk 0:02:54]} 8. Be3 {[%clk 0:03:01]}  Bxe3 {[%clk 0:02:48]} 9. fxe3 {[%clk 0:03:02]}  Na5 {[%clk 0:02:48]} 10. Bb3 {[%clk 0:03:00]}  Nxb3 {[%clk 0:02:48]} 11. axb3 {[%clk 0:03:01]}  O-O {[%clk 0:02:48]} 12. Qe1 {[%clk 0:03:01]}  Nh7 {[%clk 0:02:45]} 13. Nh4 {[%clk 0:02:48]}  c6 {[%clk 0:02:44]} 14. Nf5 {[%clk 0:02:46]}  Bxf5 {[%clk 0:02:39]} 15. Rxf5 {[%clk 0:02:32]}  Qe7 {[%clk 0:02:34]} 16. Qg3 {[%clk 0:02:30]}  Kh8 {[%clk 0:02:22]} 17. Raf1 {[%clk 0:02:27]}  g6 {[%clk 0:02:22]} 18. R5f2 {[%clk 0:02:22]}  Kg7 {[%clk 0:02:12]} 19. d4 {[%clk 0:01:58]}  Rae8 {[%clk 0:02:10]} 20. d5 {[%clk 0:01:55]}  c5 {[%clk 0:02:03]} 21. h4 {[%clk 0:01:45]}  h5 {[%clk 0:01:59]} 22. Ne2 {[%clk 0:01:37]}  Kh8 {[%clk 0:01:56]} 23. Kh1 {[%clk 0:01:30]}  Qd7 {[%clk 0:01:46]} 24. Ng1 {[%clk 0:01:26]}  Kg7 {[%clk 0:01:40]} 25. Nh3 {[%clk 0:01:23]}  Qg4 {[%clk 0:01:37]} 26. Qxg4 {[%clk 0:00:55]}  hxg4 {[%clk 0:01:36]} 27. Ng1 {[%clk 0:00:56]}  f6 {[%clk 0:01:22]} 28. g3 {[%clk 0:00:55]}  g5 {[%clk 0:01:19]} 29. h5 {[%clk 0:00:50]}  Rf7 {[%clk 0:01:16]} 30. Kg2 {[%clk 0:00:46]}  Rh8 {[%clk 0:01:15]} 31. Ne2 {[%clk 0:00:46]}  Kf8 {[%clk 0:01:13]} 32. Nc3 {[%clk 0:00:36]}  Ke7 {[%clk 0:01:13]} 33. Nb1 {[%clk 0:00:36]}  Nf8 {[%clk 0:01:12]} 34. Rh1 {[%clk 0:00:29]}  Rfh7 {[%clk 0:01:10]} 35. Nd2 {[%clk 0:00:27]}  Rxh5 {[%clk 0:01:05]} 36. Rxh5 {[%clk 0:00:28]}  Rxh5 {[%clk 0:01:06]} 37. Nc4 {[%clk 0:00:28]}  Nd7 {[%clk 0:01:05]} 38. c3 {[%clk 0:00:24]}  Rh8 {[%clk 0:01:02]} 39. Na5 {[%clk 0:00:24]}  Kd8 {[%clk 0:00:36]} 40. Nxb7+ {[%clk 0:00:23]}  Kc7 {[%clk 0:00:37]} 41. Na5 {[%clk 0:00:23]}  Rb8 {[%clk 0:00:34]} 42. c4 {[%clk 0:00:15]}  Rh8 {[%clk 0:00:29]} 43. Rf1 {[%clk 0:00:12]}  Nb8 {[%clk 0:00:27]} 44. b4 {[%clk 0:00:09]}  cxb4 {[%clk 0:00:26]} 45. Nb3 {[%clk 0:00:10]}  Kb6 {[%clk 0:00:26]} 46. Rxf6 {[%clk 0:00:08]}  Kc7 {[%clk 0:00:20]} 47. c5 {[%clk 0:00:03]}  dxc5 {[%clk 0:00:20]} 48. Nxc5 {[%clk 0:00:04]}  a5 {[%clk 0:00:17]} 49. Ne6+ {[%clk 0:00:03]}  Kb6 {[%clk 0:00:16]} 50. Nxg5+ {[%clk 0:00:04]}  Kc5 {[%clk 0:00:15]} 51. Nf7 {[%clk 0:00:04]}  Rf8 {[%clk 0:00:14]} 52. Rf5 {[%clk 0:00:04]}  Nd7 {[%clk 0:00:13]} 53. Nxe5 {[%clk 0:00:03]}  Rxf5 {[%clk 0:00:12]} 54. Nxd7+ {[%clk 0:00:03]}  Kd6 {[%clk 0:00:13]} 55. exf5 {[%clk 0:00:04]}  Kxd7 {[%clk 0:00:13]} 56. e4 {[%clk 0:00:02]}  a4 {[%clk 0:00:14]} 57. e5 {[%clk 0:00:03]}  a3 {[%clk 0:00:14]} 58. e6+ {[%clk 0:00:04]}  Kd6 {[%clk 0:00:14]} 59. f6 {[%clk 0:00:04]}  axb2 {[%clk 0:00:13]} 60. f7 {[%clk 0:00:05]}  Ke7 {[%clk 0:00:13]} 61. d6+ {[%clk 0:00:05]}  Kxe6 {[%clk 0:00:12]} 62. f8=Q {[%clk 0:00:06]}  b1=Q {[%clk 0:00:13]} 63. Qe7+ {[%clk 0:00:06]}  Kd5 {[%clk 0:00:13]} 64. Qg5+ {[%clk 0:00:04]}  Kc6 {[%clk 0:00:11]} 65. Qxg4 {[%clk 0:00:04]}  Kxd6 {[%clk 0:00:11]} 66. Qd4+ {[%clk 0:00:04]}  Kc6 {[%clk 0:00:11]} 67. Qc4+ {[%clk 0:00:04]}  Kb6 {[%clk 0:00:11]} 68. g4 {[%clk 0:00:04]}  b3 {[%clk 0:00:11]} 69. Qb4+ {[%clk 0:00:04]}  Kc6 {[%clk 0:00:10]} 70. g5 {[%clk 0:00:05]}  Qc2+ {[%clk 0:00:10]} 71. Kg3 {[%clk 0:00:05]}  b2 {[%clk 0:00:10]} 72. Kh4 {[%clk 0:00:01]}  b1=Q {[%clk 0:00:10]} 73. Qxb1 {[%clk 0:00:02]}  Qxb1 {[%clk 0:00:10]} 74. Kh5 {[%clk 0:00:03]}  Qh7+ {[%clk 0:00:10]} 0-1


[Site "https://www.chess.com"]

[Event "Titled Tuesday Blitz November 01 Late 2022"]
[White "Jaskolka, Tomasz"]
[Black "Buchenau, Frank"]
[WhiteFideId "1170791"]
[BlackFideId "4604350"]
[WhiteElo "2126"]
[BlackElo "2157"]
[Result "1/2-1/2"]
[Round "08"]
[TimeControl "180+1"]
[Date "2022.11.02"]
[WhiteClock "0:00:27"]
[BlackClock "0:00:06"]

1. e4 {[%clk 0:03:00]}  e6 {[%clk 0:02:52]} 2. Nf3 {[%clk 0:02:58]}  d5 {[%clk 0:02:52]} 3. Nc3 {[%clk 0:02:59]}  Nf6 {[%clk 0:02:51]} 4. e5 {[%clk 0:02:58]}  Nfd7 {[%clk 0:02:51]} 5. d4 {[%clk 0:02:59]}  c5 {[%clk 0:02:52]} 6. dxc5 {[%clk 0:02:55]}  Nc6 {[%clk 0:02:51]} 7. Bf4 {[%clk 0:02:56]}  Bxc5 {[%clk 0:02:50]} 8. Bd3 {[%clk 0:02:56]}  f6 {[%clk 0:02:51]} 9. exf6 {[%clk 0:02:56]}  Qxf6 {[%clk 0:02:52]} 10. Bg3 {[%clk 0:02:54]}  O-O {[%clk 0:02:51]} 11. Qe2 {[%clk 0:02:53]}  Nd4 {[%clk 0:02:51]} 12. Nxd4 {[%clk 0:02:53]}  Bxd4 {[%clk 0:02:52]} 13. O-O {[%clk 0:02:52]}  Nc5 {[%clk 0:02:51]} 14. Rad1 {[%clk 0:02:45]}  Bd7 {[%clk 0:02:49]} 15. Qg4 {[%clk 0:02:31]}  e5 {[%clk 0:02:26]} 16. Qh5 {[%clk 0:02:29]}  Nxd3 {[%clk 0:02:22]} 17. Rxd3 {[%clk 0:02:12]}  Bc6 {[%clk 0:02:12]} 18. Kh1 {[%clk 0:01:54]}  Qf5 {[%clk 0:01:23]} 19. Qxf5 {[%clk 0:01:50]}  Rxf5 {[%clk 0:01:23]} 20. Ne2 {[%clk 0:01:49]}  Bxb2 {[%clk 0:01:20]} 21. Rb1 {[%clk 0:01:47]}  e4 {[%clk 0:01:13]} 22. Rdd1 {[%clk 0:01:36]}  Bf6 {[%clk 0:01:10]} 23. Nd4 {[%clk 0:01:36]}  Bxd4 {[%clk 0:01:03]} 24. Rxd4 {[%clk 0:01:36]}  Re8 {[%clk 0:01:01]} 25. Kg1 {[%clk 0:01:36]}  e3 {[%clk 0:00:59]} 26. fxe3 {[%clk 0:01:37]}  Rxe3 {[%clk 0:00:59]} 27. a4 {[%clk 0:01:06]}  Ra3 {[%clk 0:00:49]} 28. Bd6 {[%clk 0:01:01]}  Ra2 {[%clk 0:00:44]} 29. c3 {[%clk 0:00:56]}  Kf7 {[%clk 0:00:42]} 30. g4 {[%clk 0:00:54]}  Rff2 {[%clk 0:00:40]} 31. Bg3 {[%clk 0:00:54]}  Rg2+ {[%clk 0:00:39]} 32. Kf1 {[%clk 0:00:53]}  b6 {[%clk 0:00:34]} 33. Re1 {[%clk 0:00:49]}  Rgc2 {[%clk 0:00:26]} 34. Rf4+ {[%clk 0:00:49]}  Kg8 {[%clk 0:00:20]} 35. h4 {[%clk 0:00:43]}  h6 {[%clk 0:00:19]} 36. g5 {[%clk 0:00:43]}  hxg5 {[%clk 0:00:18]} 37. hxg5 {[%clk 0:00:43]}  Rxa4 {[%clk 0:00:18]} 38. g6 {[%clk 0:00:40]}  Rxf4+ {[%clk 0:00:18]} 39. Bxf4 {[%clk 0:00:41]}  Rxc3 {[%clk 0:00:16]} 40. Re7 {[%clk 0:00:39]}  Rf3+ {[%clk 0:00:15]} 41. Ke2 {[%clk 0:00:38]}  Rxf4 {[%clk 0:00:15]} 42. Rc7 {[%clk 0:00:39]}  Be8 {[%clk 0:00:12]} 43. Rxa7 {[%clk 0:00:38]}  Kf8 {[%clk 0:00:13]} 44. Ke3 {[%clk 0:00:37]}  Rf6 {[%clk 0:00:13]} 45. Kd4 {[%clk 0:00:38]}  Rxg6 {[%clk 0:00:14]} 46. Kxd5 {[%clk 0:00:38]}  Rf6 {[%clk 0:00:14]} 47. Ke5 {[%clk 0:00:39]}  Rf7 {[%clk 0:00:14]} 48. Ra6 {[%clk 0:00:38]}  b5 {[%clk 0:00:14]} 49. Rb6 {[%clk 0:00:39]}  Re7+ {[%clk 0:00:14]} 50. Kf5 {[%clk 0:00:39]}  g6+ {[%clk 0:00:14]} 51. Kf6 {[%clk 0:00:39]}  Rc7 {[%clk 0:00:14]} 52. Rb8 {[%clk 0:00:39]}  Rc6+ {[%clk 0:00:14]} 53. Kg5 {[%clk 0:00:39]}  Ke7 {[%clk 0:00:14]} 54. Rxb5 {[%clk 0:00:37]}  Rd6 {[%clk 0:00:13]} 55. Rb7+ {[%clk 0:00:37]}  Rd7 {[%clk 0:00:13]} 56. Rb2 {[%clk 0:00:36]}  Rd5+ {[%clk 0:00:13]} 57. Kh6 {[%clk 0:00:36]}  Rh5+ {[%clk 0:00:13]} 58. Kg7 {[%clk 0:00:37]}  g5 {[%clk 0:00:13]} 59. Re2+ {[%clk 0:00:36]}  Kd6 {[%clk 0:00:12]} 60. Rxe8 {[%clk 0:00:35]}  g4 {[%clk 0:00:11]} 61. Kg6 {[%clk 0:00:35]}  Re5 {[%clk 0:00:10]} 62. Rd8+ {[%clk 0:00:34]}  Ke6 {[%clk 0:00:10]} 63. Rd4 {[%clk 0:00:29]}  g3 {[%clk 0:00:08]} 64. Rg4 {[%clk 0:00:30]}  Re3 {[%clk 0:00:08]} 65. Kg5 {[%clk 0:00:30]}  Ke5 {[%clk 0:00:08]} 66. Kh4 {[%clk 0:00:30]}  Kf5 {[%clk 0:00:07]} 67. Rxg3 {[%clk 0:00:27]}  Rxg3 {[%clk 0:00:06]} 68. Kxg3 {[%clk 0:00:27]} 1/2-1/2


[Site "https://www.chess.com"]

[Event "Titled Tuesday Blitz November 01 Late 2022"]
[White "Jimenez Fernandez, Rebeca"]
[Black "Powell, Paul"]
[WhiteFideId "32070934"]
[BlackFideId "2005840"]
[WhiteElo "1946"]
[BlackElo "2048"]
[Result "0-1"]
[Round "08"]
[TimeControl "180+1"]
[Date "2022.11.02"]
[WhiteClock "0:00:57"]
[BlackClock "0:00:08"]

1. e4 {[%clk 0:03:00]}  c5 {[%clk 0:02:59]} 2. Nc3 {[%clk 0:03:00]}  d6 {[%clk 0:02:59]} 3. g3 {[%clk 0:03:01]}  g6 {[%clk 0:02:58]} 4. Bg2 {[%clk 0:03:01]}  Bg7 {[%clk 0:02:59]} 5. d3 {[%clk 0:03:02]}  Nf6 {[%clk 0:02:58]} 6. h3 {[%clk 0:03:02]}  O-O {[%clk 0:02:58]} 7. Be3 {[%clk 0:03:02]}  Nc6 {[%clk 0:02:58]} 8. Qd2 {[%clk 0:03:03]}  Re8 {[%clk 0:02:57]} 9. Bh6 {[%clk 0:03:04]}  Bh8 {[%clk 0:02:57]} 10. f4 {[%clk 0:03:04]}  Nd4 {[%clk 0:02:56]} 11. Nd1 {[%clk 0:03:01]}  Rb8 {[%clk 0:02:34]} 12. c3 {[%clk 0:03:01]}  Nc6 {[%clk 0:02:34]} 13. Nf3 {[%clk 0:03:02]}  b5 {[%clk 0:02:34]} 14. O-O {[%clk 0:03:02]}  b4 {[%clk 0:02:34]} 15. f5 {[%clk 0:02:59]}  bxc3 {[%clk 0:02:30]} 16. bxc3 {[%clk 0:03:00]}  Qa5 {[%clk 0:02:13]} 17. Ne3 {[%clk 0:02:46]}  Qa3 {[%clk 0:02:08]} 18. Nc4 {[%clk 0:02:36]}  Qa4 {[%clk 0:01:56]} 19. fxg6 {[%clk 0:02:27]}  hxg6 {[%clk 0:01:54]} 20. e5 {[%clk 0:02:24]}  Nxe5 {[%clk 0:01:40]} 21. Nfxe5 {[%clk 0:02:22]}  dxe5 {[%clk 0:01:40]} 22. Nxe5 {[%clk 0:02:22]}  Bb7 {[%clk 0:01:21]} 23. Bxb7 {[%clk 0:02:12]}  Rxb7 {[%clk 0:01:20]} 24. Qg5 {[%clk 0:02:09]}  Nh7 {[%clk 0:00:46]} 25. Qe3 {[%clk 0:02:02]}  e6 {[%clk 0:00:28]} 26. Rf4 {[%clk 0:01:57]}  Qc2 {[%clk 0:00:27]} 27. Raf1 {[%clk 0:01:54]}  Qxc3 {[%clk 0:00:23]} 28. Nxf7 {[%clk 0:01:39]}  Rxf7 {[%clk 0:00:21]} 29. Qe4 {[%clk 0:01:15]}  Qd4+ {[%clk 0:00:18]} 30. Kh1 {[%clk 0:01:01]}  Qxe4+ {[%clk 0:00:17]} 31. dxe4 {[%clk 0:01:01]}  Rxf4 {[%clk 0:00:16]} 32. gxf4 {[%clk 0:01:02]}  Bg7 {[%clk 0:00:16]} 33. Bxg7 {[%clk 0:01:00]}  Kxg7 {[%clk 0:00:16]} 34. f5 {[%clk 0:01:01]}  exf5 {[%clk 0:00:15]} 35. exf5 {[%clk 0:01:01]}  Rf8 {[%clk 0:00:10]} 36. Rb1 {[%clk 0:00:57]}  Rxf5 {[%clk 0:00:10]} 37. Rb7+ {[%clk 0:00:57]}  Rf7 {[%clk 0:00:10]} 38. Rb8 {[%clk 0:00:56]}  Rc7 {[%clk 0:00:08]} 39. Rc8 {[%clk 0:00:57]}  Rxc8 {[%clk 0:00:08]} 0-1


[Site "https://www.chess.com"]

[Event "Titled Tuesday Blitz November 01 Late 2022"]
[White "Kanyamarala, Trisha"]
[Black "Zilleruelo Irizarry, Diego"]
[WhiteFideId "45004722"]
[BlackFideId "3101460"]
[WhiteElo "2099"]
[BlackElo "1998"]
[Result "0-1"]
[Round "08"]
[TimeControl "180+1"]
[Date "2022.11.02"]
[WhiteClock "0:01:00"]
[BlackClock "0:01:07"]

1. d4 {[%clk 0:03:00]}  d5 {[%clk 0:02:59]} 2. c4 {[%clk 0:03:00]}  e6 {[%clk 0:03:00]} 3. Nc3 {[%clk 0:03:00]}  a6 {[%clk 0:03:00]} 4. cxd5 {[%clk 0:02:59]}  exd5 {[%clk 0:03:01]} 5. Nf3 {[%clk 0:02:59]}  Nf6 {[%clk 0:03:02]} 6. Bg5 {[%clk 0:02:59]}  Be6 {[%clk 0:03:02]} 7. e3 {[%clk 0:02:59]}  Nbd7 {[%clk 0:03:03]} 8. Bd3 {[%clk 0:02:59]}  h6 {[%clk 0:03:04]} 9. Bh4 {[%clk 0:02:58]}  g5 {[%clk 0:03:04]} 10. Bg3 {[%clk 0:02:57]}  Nh5 {[%clk 0:03:05]} 11. Be5 {[%clk 0:02:48]}  Nhf6 {[%clk 0:03:04]} 12. Qc2 {[%clk 0:02:42]}  Nxe5 {[%clk 0:03:04]} 13. dxe5 {[%clk 0:02:41]}  Nd7 {[%clk 0:03:03]} 14. O-O {[%clk 0:02:39]}  Bg7 {[%clk 0:03:02]} 15. Rad1 {[%clk 0:02:37]}  Nxe5 {[%clk 0:02:56]} 16. Nxe5 {[%clk 0:02:36]}  Bxe5 {[%clk 0:02:57]} 17. f4 {[%clk 0:02:37]}  gxf4 {[%clk 0:02:52]} 18. exf4 {[%clk 0:02:38]}  Bd6 {[%clk 0:02:23]} 19. f5 {[%clk 0:02:33]}  Bd7 {[%clk 0:02:17]} 20. Nxd5 {[%clk 0:02:27]}  Qh4 {[%clk 0:02:11]} 21. g3 {[%clk 0:02:15]}  Qd4+ {[%clk 0:02:11]} 22. Qf2 {[%clk 0:01:54]}  Qxd5 {[%clk 0:02:09]} 23. Rfe1+ {[%clk 0:01:38]}  Kf8 {[%clk 0:02:09]} 24. Be4 {[%clk 0:01:35]}  Qa5 {[%clk 0:01:44]} 25. Kg2 {[%clk 0:01:30]}  Re8 {[%clk 0:01:38]} 26. Bxb7 {[%clk 0:01:13]}  Rxe1 {[%clk 0:01:37]} 27. Rxe1 {[%clk 0:01:13]}  Qxf5 {[%clk 0:01:37]} 28. Qd4 {[%clk 0:01:09]}  Rg8 {[%clk 0:01:16]} 29. Qh4 {[%clk 0:01:01]}  Qc2+ {[%clk 0:01:07]} 30. Kh1 {[%clk 0:01:00]}  Bc6+ {[%clk 0:01:07]} 31. Bxc6 {[%clk 0:01:00]}  Qxc6+ {[%clk 0:01:08]} 32. Kg1 {[%clk 0:01:00]}  Bc5+ {[%clk 0:01:07]} 33. Kf1 {[%clk 0:01:00]}  Qf3# {[%clk 0:01:07]} 0-1


[Site "https://www.chess.com"]

[Event "Titled Tuesday Blitz November 01 Late 2022"]
[White "Khripachenko, Alexander"]
[Black "Miszler, Levente"]
[WhiteFideId "54184975"]
[BlackFideId "763276"]
[WhiteElo "2201"]
[BlackElo "2176"]
[Result "1-0"]
[Round "08"]
[TimeControl "180+1"]
[Date "2022.11.02"]
[WhiteClock "0:02:25"]
[BlackClock "0:02:05"]

1. e4 {[%clk 0:02:51]}  e6 {[%clk 0:02:51]} 2. d4 {[%clk 0:02:50]}  d5 {[%clk 0:02:51]} 3. Nd2 {[%clk 0:02:51]}  f5 {[%clk 0:02:51]} 4. exf5 {[%clk 0:02:49]}  exf5 {[%clk 0:02:52]} 5. Ngf3 {[%clk 0:02:49]}  Nf6 {[%clk 0:02:52]} 6. Bd3 {[%clk 0:02:49]}  Bd6 {[%clk 0:02:52]} 7. O-O {[%clk 0:02:50]}  O-O {[%clk 0:02:53]} 8. Ne5 {[%clk 0:02:50]}  Nbd7 {[%clk 0:02:50]} 9. Nxd7 {[%clk 0:02:49]}  Bxd7 {[%clk 0:02:51]} 10. Nf3 {[%clk 0:02:49]}  Ne4 {[%clk 0:02:49]} 11. Ne5 {[%clk 0:02:49]}  c5 {[%clk 0:02:48]} 12. c3 {[%clk 0:02:45]}  Bxe5 {[%clk 0:02:41]} 13. dxe5 {[%clk 0:02:44]}  Qe7 {[%clk 0:02:42]} 14. f3 {[%clk 0:02:44]}  Ng5 {[%clk 0:02:37]} 15. Bxg5 {[%clk 0:02:44]}  Qxg5 {[%clk 0:02:37]} 16. f4 {[%clk 0:02:45]}  Qe7 {[%clk 0:02:36]} 17. Qd2 {[%clk 0:02:46]}  Bc6 {[%clk 0:02:36]} 18. Be2 {[%clk 0:02:43]}  d4 {[%clk 0:02:33]} 19. cxd4 {[%clk 0:02:42]}  Rad8 {[%clk 0:02:33]} 20. d5 {[%clk 0:02:41]}  Bxd5 {[%clk 0:02:31]} 21. Qc3 {[%clk 0:02:41]}  b6 {[%clk 0:02:27]} 22. a4 {[%clk 0:02:41]}  Qb7 {[%clk 0:02:25]} 23. Rf2 {[%clk 0:02:37]}  Rfe8 {[%clk 0:02:21]} 24. a5 {[%clk 0:02:36]}  Re6 {[%clk 0:02:20]} 25. Rd1 {[%clk 0:02:34]}  b5 {[%clk 0:02:06]} 26. Qxc5 {[%clk 0:02:30]}  Rg6 {[%clk 0:02:05]} 27. Bf3 {[%clk 0:02:25]} 1-0


[Site "https://www.chess.com"]